bitfinex/quotes_ETHUSD_20240824
["timestamp","ask_amount","ask_price","bid_price","bid_amount"]
[1724494368100,12.31473016,2775.2,2775.1,1e-05]
[1724494368294,13.07652,2775.2,2775.1,1e-05]
[1724494368543,14.95726181,2775.2,2775.1,1e-05]
[1724494368745,14.57224618,2775.2,2775.1,1e-05]
[1724494369443,17.57224618,2775.2,2775.1,1e-05]
[1724494370030,22.85147382,2775.2,2775.1,1e-05]
[1724494370248,22.81147382,2775.2,2775.1,1e-05]
[1724494372999,19.78926334,2775.2,2775.1,1e-05]
[1724494373449,17.53224618,2775.2,2775.1,1e-05]
[1724494377707,21.13558618,2775.2,2775.1,1e-05]
[1724494379656,24.15779666,2775.2,2775.1,1e-05]
[1724494379952,26.41322479,2775.2,2775.1,1e-05]
[1724494380106,24.15779666,2775.2,2775.1,1e-05]
[1724494380542,18.79138,2775.2,2775.1,1e-05]
[1724494386959,20.66958521,2775.2,2775.1,1e-05]
[1724494387269,20.66958617,2775.2,2775.1,1e-05]
[1724494387670,18.79138,2775.2,2775.1,1e-05]
[1724494389356,16.52488,2775.2,2775.1,1e-05]
[1724494390093,18.7787274,2775.2,2775.1,1e-05]
[1724494390442,22.3820674,2775.2,2775.1,1e-05]
[1724494391888,20.12822,2775.2,2775.1,1e-05]
[1724494392178,22.38350685,2775.2,2775.1,1e-05]
[1724494394594,18.78016685,2775.2,2775.1,1e-05]
[1724494396682,18.78245445,2775.2,2775.1,1e-05]
[1724494397881,16.52488,2775.2,2775.1,1e-05]
[1724494398587,18.78245445,2775.2,2775.1,1e-05]
[1724494399566,17.28672827,2775.2,2775.1,1e-05]
[1724494399774,15.02915382,2775.2,2775.1,1e-05]
[1724494400608,11.42581382,2775.2,2775.1,1e-05]
[1724494400891,11.42581382,2775.2,2775.1,2.29831]
[1724494401097,13.6864814,2775.2,2775.1,2.29831]
[1724494401589,11.42581382,2775.2,2775.1,2.29831]
[1724494402168,15.02915382,2775.2,2775.1,2.29831]
[1724494402371,16.3605075,2775.2,2775.1,1e-05]
[1724494402569,12.7571675,2775.2,2775.1,1e-05]
[1724494402776,18.99892015,2775.2,2775.1,1e-05]
[1724494403292,15.39558015,2775.2,2775.1,1e-05]
[1724494403495,18.99892015,2775.2,2775.1,1e-05]
[1724494403690,15.39558015,2775.2,2775.1,1e-05]
[1724494404066,18.99892015,2775.2,2775.1,1e-05]
[1724494404704,15.39558015,2775.2,2775.1,1e-05]
[1724494404891,14.06422647,2775.2,2775.1,1e-05]
[1724494405286,11.42581382,2775.2,2775.1,1e-05]
[1724494405612,15.02915382,2775.2,2775.1,1e-05]
[1724494405908,21.02239382,2775.2,2775.1,1e-05]
[1724494406105,24.13901876,2775.2,2775.1,1e-05]
[1724494406311,23.4362957,2775.2,2775.1,1e-05]
[1724494411594,26.55665319,2775.2,2775.1,1e-05]
[1724494413836,23.4362957,2775.2,2775.1,1e-05]
[1724494413982,26.5567112,2775.2,2775.1,1e-05]
[1724494414788,23.4362957,2775.2,2775.1,1e-05]
[1724494416601,27.0396357,2775.2,2775.1,1e-05]
[1724494418831,23.4362957,2775.2,2775.1,1e-05]
[1724494419002,7.20876,2774.4,2774.3,2.4854]
[1724494419322,8.46789382,2774.4,2774.3,2.4854]
[1724494421495,8.46789382,2774.4,2773.9,2.4854]
[1724494421496,3.60497,2774.0,2773.9,2.4854]
[1724494421697,3.60497,2774.0,2773.9,3.47794]
[1724494422788,5.11391282,2774.0,2773.9,3.47794]
[1724494423505,5.11391282,2774.0,2773.9,2.4854]
[1724494425345,3.60518,2773.8,2773.5,2.4431]
[1724494425643,5.11299717,2773.8,2773.5,2.4431]
[1724494426357,3.60542,2773.6,2773.5,2.4431]
[1724494426636,3.60542,2773.6,2773.5,2.6874102]
[1724494427339,7.21045,2773.8,2773.5,2.6874102]
[1724494427544,3.60518,2773.8,2773.5,2.6874102]
[1724494427744,1.13037141,2773.7,2773.5,2.6874102]
[1724494427948,4.73568141,2773.7,2773.6,2.71184102]
[1724494428329,3.60562,2773.5,2773.3,2.44310197]
[1724494428642,4.73590243,2773.5,2773.3,2.44310197]
[1724494428844,4.73596243,2773.4,2773.3,2.44310197]
[1724494429012,3.60568,2773.4,2773.3,2.44310197]
[1724494429206,4.73538956,2773.4,2773.3,2.44310197]
[1724494429406,4.73538956,2773.4,2773.3,3.43141217]
[1724494430649,3.60568,2773.4,2773.3,3.43141217]
[1724494430811,0.33729422,2773.4,2773.3,3.43141217]
[1724494431339,3.60553,2773.6,2773.4,2.4431]
[1724494436165,7.21103,2773.6,2773.4,2.4431]
[1724494436329,3.60555,2773.5,2773.4,2.4431]
[1724494445176,3.6055,2773.6,2773.4,2.6874102]
[1724494445340,7.211,2773.6,2773.4,2.6874102]
[1724494445753,7.21101,2773.6,2773.4,2.6874102]
[1724494446643,6.732227,2773.6,2773.4,2.6874102]
[1724494446972,3.60551,2773.6,2773.4,2.6874102]
[1724494447278,7.21103,2773.6,2773.4,2.6874102]
[1724494447573,3.60551,2773.6,2773.4,2.6874102]
[1724494447790,7.21104,2773.6,2773.4,2.6874102]
[1724494448142,1.12970956,2773.7,2773.5,0.26874122]
[1724494448343,4.73498956,2773.8,2773.4,2.2889]
[1724494448653,3.94278924,2773.7,2773.4,2.2889]
[1724494448859,3.60531,2773.7,2773.4,2.2889]
[1724494449461,1.12970956,2774.0,2773.5,3.60553]
[1724494449794,3.6049,2774.0,2773.7,2.2889]
[1724494450521,3.60516,2773.8,2773.7,2.2889]
[1724494450791,7.21032,2773.8,2773.7,2.2889]
[1724494451400,7.5478253,2773.8,2773.7,2.2889]
[1724494451579,7.21032,2773.8,2773.7,2.2889]
[1724494452395,8.67753967,2773.8,2773.7,2.2889]
[1724494452590,3.60536,2773.7,2773.4,2.2889]
[1724494452795,3.60536,2773.7,2773.5,0.2288902]
[1724494455197,4.73473956,2773.9,2773.6,2.2889]
[1724494455520,4.73463956,2774.0,2773.6,2.2889]
[1724494456213,1.46729137,2773.9,2773.6,2.2889]
[1724494456415,1.12970956,2773.9,2773.7,0.61233302]
[1724494457151,1.12970956,2773.9,2773.8,2.2889]
[1724494457309,1.50781717,2774.1,2773.8,2.2889]
[1724494457310,1.12970956,2774.1,2773.8,2.2889]
[1724494458143,4.73441956,2774.2,2773.8,2.2889]
[1724494458288,1.46734513,2774.1,2774.0,2.2889]
[1724494458997,1.46735685,2774.1,2774.0,2.2889]
[1724494459203,1.12970956,2774.2,2774.0,2.2889]
[1724494459593,4.73435956,2774.2,2774.0,2.2889]
[1724494460291,1.12970956,2774.2,2774.0,2.2889]
[1724494460489,1.12970956,2774.2,2774.0,3.30388513]
[1724494460695,1.12970956,2774.2,2774.1,2.2889]
[1724494461094,1.12970956,2774.3,2774.1,2.2889]
[1724494461532,1.12970956,2774.2,2774.1,2.2889]
[1724494462504,1.46739901,2774.2,2774.1,2.2889]
[1724494462842,1.12970956,2774.2,2774.1,2.6264975]
[1724494463227,1.12970956,2774.5,2774.2,2.438]
[1724494463540,4.73390956,2774.6,2774.2,2.51008525]
[1724494464810,1.12970956,2774.6,2774.2,3.60455]
[1724494465005,1.12970956,2774.7,2774.4,2.438]
[1724494465206,4.73364956,2774.8,2774.5,0.61145813]
[1724494465410,4.73364956,2774.8,2774.4,2.438]
[1724494465610,3.604,2774.7,2774.4,2.438]
[1724494465811,4.73370956,2774.7,2774.4,2.438]
[1724494466051,3.604,2774.7,2774.4,2.438]
[1724494467049,1.12970956,2774.8,2774.4,2.438]
[1724494467248,4.73364956,2774.8,2774.6,2.438]
[1724494467406,3.60399,2774.7,2774.6,2.438]
[1724494467840,3.60415,2774.6,2774.2,2.438]
[1724494468643,3.60418,2774.6,2774.2,2.438]
[1724494468842,1.12970956,2774.6,2774.2,2.438]
[1724494469066,3.60413,2774.6,2774.3,1.02155975]
[1724494469915,4.86326382,2774.6,2774.3,1.02155975]
[1724494470128,8.46747382,2774.6,2774.3,1.02155975]
[1724494470573,4.86326382,2774.6,2774.3,1.02155975]
[1724494470774,2.38884338,2774.6,2774.2,2.438]
[1724494471056,7.20891,2774.4,2774.2,2.438]
[1724494471554,3.60444,2774.4,2774.2,2.438]
[1724494472213,3.60427,2774.5,2774.2,2.438]
[1724494472414,3.60463,2774.3,2774.1,7.44]
[1724494473337,1.25913382,2774.4,2774.1,7.44]
[1724494474049,4.86354382,2774.4,2774.1,7.44]
[1724494474757,3.6049,2774.0,2773.9,2.438]
[1724494478158,3.6049,2774.0,2773.5,7.4398402]
[1724494478159,3.6049,2774.0,2773.6,2.438]
[1724494480486,4.86403382,2774.0,2773.6,2.438]
[1724494481201,3.6051,2773.9,2773.6,2.438]
[1724494483057,3.60518,2773.8,2773.6,2.438]
[1724494483677,3.6053,2773.7,2773.5,0.2288902]
[1724494484364,3.60543,2773.6,2773.4,7.44]
[1724494486258,4.73491956,2773.8,2773.4,7.44]
[1724494486457,1.12970956,2773.9,2773.5,2.2791]
[1724494487778,4.73476956,2773.9,2773.5,2.2791]
[1724494487979,1.12970956,2773.8,2773.5,4.8575692]
[1724494488374,4.73476956,2773.9,2773.5,4.8575692]
[1724494488799,1.12970956,2773.8,2773.5,4.8575692]
[1724494488985,1.12970956,2773.9,2773.5,4.8575692]
[1724494489214,4.73473956,2773.9,2773.5,4.8575692]
[1724494489395,4.73473956,2773.9,2773.6,0.45777022]
[1724494490318,4.73473956,2773.9,2773.5,2.2791]
[1724494490319,1.12970956,2773.8,2773.5,2.2791]
[1724494491390,4.73488956,2773.8,2773.5,2.2791]
[1724494492239,3.60542,2773.6,2773.5,2.2791]
[1724494492720,3.60542,2773.6,2773.4,7.44]
[1724494493590,5.99413338,2773.7,2773.4,7.44]
[1724494493796,9.59950338,2773.7,2773.4,7.44]
[1724494493997,4.73499956,2773.7,2773.4,7.44]
[1724494494192,4.73499956,2773.7,2773.4,8.7724982]
[1724494494193,3.60529,2773.7,2773.4,8.7724982]
[1724494494608,3.60529,2773.7,2773.4,1.3324982]
[1724494494814,3.60529,2773.7,2773.3,5.88489197]
[1724494495754,4.73499956,2773.7,2773.3,2.27910197]
[1724494495906,8.34037956,2773.7,2773.3,2.27910197]
[1724494496116,4.73499956,2773.7,2773.3,2.27910197]
[1724494497321,3.60529,2773.7,2773.3,2.27910197]
[1724494497491,3.60529,2773.7,2773.3,2.9240211]
[1724494498196,3.60529,2773.7,2773.3,2.27910197]
[1724494498197,5.99413338,2773.7,2773.3,2.27910197]
[1724494498632,1.12970956,2773.6,2773.3,2.27910197]
[1724494498863,5.99413338,2773.7,2773.3,2.27910197]
[1724494500787,4.73499956,2773.7,2773.3,2.27910197]
[1724494500922,3.60529,2773.7,2773.4,0.5884962]
[1724494501123,1.12970956,2774.0,2773.5,6.44862825]
[1724494501322,1.12970956,2774.0,2773.5,5.88454]
[1724494501555,3.6049,2774.0,2773.5,5.88454]
[1724494501765,3.6049,2774.0,2773.6,0.64730362]
[1724494501969,1.50781717,2774.2,2773.9,1.25913382]
[1724494501970,1.12970956,2774.2,2773.9,1.25913382]
[1724494502155,1.12970956,2774.5,2774.2,2.3401]
[1724494502324,1.12970956,2774.4,2774.2,2.3401]
[1724494503230,4.73416956,2774.4,2774.2,2.3401]
[1724494503428,4.73416956,2774.4,2773.9,2.3401]
[1724494503974,4.73416956,2774.4,2773.9,5.94512]
[1724494504267,3.60446,2774.4,2773.9,5.94512]
[1724494504578,4.73397956,2774.5,2773.9,7.05605238]
[1724494504579,8.33833956,2774.5,2773.9,7.05605238]
[1724494505266,1.12970956,2774.4,2774.0,3.60489]
[1724494505781,4.73408956,2774.4,2774.0,3.60489]
[1724494505932,3.60438,2774.4,2774.0,3.60489]
[1724494506227,3.60438,2774.4,2774.1,0.70559224]
[1724494507457,4.73408956,2774.4,2774.1,0.70559224]
[1724494507658,3.60438,2774.4,2774.1,0.70559224]
[1724494507842,4.73408956,2774.4,2774.1,0.70559224]
[1724494508050,3.60438,2774.4,2774.1,0.70559224]
[1724494508368,4.73408956,2774.4,2774.1,0.70559224]
[1724494508567,3.60438,2774.4,2774.1,0.70559224]
[1724494508970,4.73397956,2774.5,2774.1,0.70559224]
[1724494508971,1.12970956,2774.5,2774.1,4.31029224]
[1724494509156,1.12970956,2774.5,2774.2,0.43102922]
[1724494509674,1.12970956,2774.5,2774.3,2.3401]
[1724494510384,4.73396956,2774.5,2774.3,2.3401]
[1724494510679,1.12970956,2774.5,2774.3,2.3401]
[1724494513063,1.12970956,2774.4,2774.3,2.3401]
[1724494513268,1.12970956,2774.4,2774.3,2.68777215]
[1724494514657,4.73396956,2774.5,2774.3,2.68777215]
[1724494515067,4.73396956,2774.5,2774.2,0.43102922]
[1724494515068,1.12970956,2774.4,2774.2,0.43102922]
[1724494515377,1.12970956,2774.3,2774.1,2.3401]
[1724494516287,1.12970956,2774.3,2773.9,13.38504]
[1724494516448,1.12970956,2774.4,2774.0,5.9449]
[1724494517274,1.12970956,2774.4,2774.1,2.3401]
[1724494517486,1.12970956,2774.4,2774.2,0.59449]
[1724494517687,0.65092656,2774.4,2774.2,0.59449]
[1724494518210,5.11207717,2774.5,2774.2,0.59449]
[1724494518211,1.50781717,2774.5,2774.2,0.59449]
[1724494518501,1.88644424,2774.6,2774.3,2.3401]
[1724494518502,1.50781717,2774.6,2774.3,2.3401]
[1724494519247,1.50781717,2774.7,2774.3,5.94452]
[1724494519443,1.50781717,2774.8,2774.3,5.94452]
[1724494519699,8.71576717,2774.8,2774.4,0.594452]
[1724494519880,3.60402,2774.7,2774.4,0.594452]
[1724494521146,3.60388,2774.8,2774.4,0.594452]
[1724494522785,7.20786,2774.8,2774.4,0.594452]
[1724494523090,3.60388,2774.8,2774.4,0.594452]
[1724494523690,7.20783,2774.8,2774.4,0.594452]
[1724494523857,3.60388,2774.8,2774.4,0.594452]
[1724494525579,7.20783,2774.8,2774.4,0.594452]
[1724494526394,3.60388,2774.8,2774.4,0.594452]
[1724494526592,8.33866941,2774.8,2774.4,0.594452]
[1724494526993,4.73468941,2774.8,2774.4,0.594452]
[1724494527195,1.50781717,2774.9,2774.5,0.6539042]
[1724494527196,4.73453941,2774.9,2774.5,0.6539042]
[1724494527426,4.73453941,2774.9,2774.6,2.3575]
[1724494527736,3.60386,2774.8,2774.6,2.3575]
[1724494531202,1.13080941,2774.9,2774.6,2.3575]
[1724494531430,5.48785231,2775.2,2774.7,5.96142]
[1724494531431,4.73421941,2775.2,2774.7,5.96142]
[1724494531721,3.60341,2775.2,2774.8,0.60334925]
[1724494531924,7.20684,2775.2,2774.8,0.60334925]
[1724494532218,3.60341,2775.2,2774.9,2.3575]
[1724494533232,8.33712941,2775.4,2774.9,2.3575]
[1724494533389,3.60323,2775.3,2774.9,3.13989031]
[1724494533899,4.73396941,2775.4,2774.9,3.13989031]
[1724494534422,3.60322,2775.3,2774.9,3.13989031]
[1724494537285,1.13080941,2775.4,2774.9,3.13989031]
[1724494537480,1.13080941,2775.4,2775.0,0.67436703]
[1724494537688,3.60298,2775.5,2775.1,2.3575]
[1724494537689,8.33685941,2775.5,2775.1,2.3575]
[1724494537891,3.60308,2775.4,2775.1,2.3575]
[1724494540034,1.13080941,2775.5,2775.1,2.3575]
[1724494540386,4.73361941,2775.7,2775.2,3.60333]
[1724494540745,1.13080941,2775.6,2775.2,4.199413]
[1724494540911,3.60282,2775.6,2775.2,0.596083]
[1724494541228,4.73362941,2775.6,2775.2,0.596083]
[1724494541937,8.33651941,2775.6,2775.2,0.596083]
[1724494542145,3.60296,2775.5,2775.2,0.596083]
[1724494543550,3.60296,2775.5,2775.3,0.2953583]
[1724494543799,1.13080941,2775.6,2775.3,0.2953583]
[1724494544204,1.13080941,2775.6,2775.4,2.4073]
[1724494544838,4.73363941,2775.6,2775.4,2.4073]
[1724494545796,1.13080941,2775.6,2775.4,2.4073]
[1724494546121,1.13080941,2775.6,2775.5,0.27026583]
[1724494548502,4.73362941,2775.6,2775.5,0.27026583]
[1724494550643,1.13080941,2775.6,2775.5,0.27026583]
[1724494550888,4.73349941,2775.7,2775.5,0.27026583]
[1724494552291,1.13080941,2775.8,2775.5,0.27026583]
[1724494552458,4.73326941,2775.9,2775.5,0.27026583]
[1724494552662,4.73326941,2775.9,2775.6,0.26775658]
[1724494552874,1.13080941,2776.0,2775.7,2.3967]
[1724494553077,4.73301941,2776.1,2775.7,2.3967]
[1724494553257,4.73301941,2776.1,2775.8,0.62672666]
[1724494553462,8.33530941,2776.1,2775.7,2.3967]
[1724494554201,4.73301941,2776.1,2775.7,2.3967]
[1724494554583,3.60221,2776.1,2775.7,2.3967]
[1724494554980,4.73301941,2776.1,2775.7,2.3967]
[1724494555500,1.25913382,2776.0,2775.3,2.3967]
[1724494555679,3.60283,2775.6,2775.3,2.3967]
[1724494555863,3.60295,2775.5,2775.3,2.3967]
[1724494556259,3.60276,2775.7,2775.3,2.3967]
[1724494558509,3.60276,2775.7,2775.3,5.9999]
[1724494558680,3.60276,2775.7,2775.4,0.9993545]
[1724494560289,3.60257,2775.8,2775.4,0.9993545]
[1724494562576,3.60257,2775.8,2775.4,4.6024145]
[1724494562577,4.73337941,2775.8,2775.4,4.6024145]
[1724494564295,1.13080941,2775.8,2775.4,4.6024145]
[1724494565986,4.73328941,2775.9,2775.4,4.6024145]
[1724494566187,4.73328941,2775.9,2775.1,0.3]
[1724494566188,3.60316,2775.4,2775.1,0.3]
[1724494566430,9.59627323,2775.4,2775.1,0.3]
[1724494566601,5.99310323,2775.4,2775.1,0.3]
[1724494567006,9.59629323,2775.4,2775.1,0.3]
[1724494567219,1.13080941,2775.3,2775.1,0.3]
[1724494567420,5.99310323,2775.4,2775.1,0.3]
[1724494567828,4.73396941,2775.4,2775.1,0.3]
[1724494568231,1.13080941,2775.3,2775.1,0.3]
[1724494568406,1.13080941,2775.3,2775.1,1.050729]
[1724494568859,1.13080941,2775.3,2775.2,2.4609]
[1724494569012,1.13080941,2775.4,2775.2,2.4609]
[1724494569545,1.13080941,2775.3,2775.2,2.4609]
[1724494572552,1.50781717,2775.4,2775.2,2.4609]
[1724494574438,1.50781717,2775.3,2775.2,2.4609]
[1724494575603,1.50781717,2775.3,2775.1,1.050729]
[1724494575604,5.11104717,2775.3,2775.1,1.050729]
[1724494575949,5.11104717,2775.3,2775.1,0.3]
[1724494576647,1.50781717,2775.2,2775.1,0.3]
[1724494580514,5.48967017,2775.3,2775.1,6.36426]
[1724494580515,1.13194272,2775.3,2775.1,6.36426]
[1724494580897,1.50781717,2775.5,2775.1,6.36426]
[1724494580898,1.13194272,2775.4,2775.1,6.36426]
[1724494581099,1.13194272,2775.4,2775.2,0.636426]
[1724494581348,1.13194272,2775.4,2775.2,4.239636]
[1724494581593,1.13194272,2775.4,2775.3,9.66732]
[1724494581814,1.50781717,2775.6,2775.5,2.3178]
[1724494581815,1.13194272,2775.6,2775.5,2.3178]
[1724494582023,1.13194272,2775.8,2775.6,3.60282]
[1724494582177,1.50781717,2775.9,2775.6,3.60282]
[1724494582178,1.13194272,2775.9,2775.8,5.92036]
[1724494584102,1.13194272,2775.9,2775.8,2.3178]
[1724494584301,1.13194272,2775.9,2775.8,3.270144]
[1724494586403,1.13194272,2776.0,2775.8,6.872704]
[1724494587399,1.13194272,2776.1,2775.8,6.872704]
[1724494587803,1.13194272,2776.1,2775.8,3.270144]
[1724494588001,1.13194272,2776.1,2775.9,0.45292778]
[1724494588203,1.13194272,2776.0,2775.9,0.45292778]
[1724494588389,5.10989717,2776.2,2775.9,0.45292778]
[1724494588390,1.13194272,2776.1,2775.9,0.45292778]
[1724494589707,1.13194272,2776.1,2775.9,4.05535778]
[1724494589894,1.13194272,2776.2,2775.9,4.05535778]
[1724494590093,1.13194272,2776.2,2776.0,0.73255018]
[1724494590429,1.13194272,2776.4,2776.1,2.3178]
[1724494591523,1.13194272,2776.5,2776.1,2.3178]
[1724494592365,1.13194272,2776.5,2776.1,5.91996]
[1724494593596,4.73361272,2776.5,2776.1,2.3178]
[1724494593791,4.73361272,2776.5,2776.1,3.51451418]
[1724494596208,3.60167,2776.5,2776.1,3.51451418]
[1724494597269,8.33518272,2776.6,2776.1,3.51451418]
[1724494598812,4.73354272,2776.6,2776.1,7.11667418]
[1724494599038,3.6016,2776.6,2776.1,7.11667418]
[1724494599180,3.6016,2776.6,2776.2,0.78492244]
[1724494602190,3.60167,2776.5,2776.2,0.78492244]
[1724494602408,3.60167,2776.5,2776.1,3.51451418]
[1724494602733,3.6016,2776.6,2776.1,3.51451418]
[1724494602734,3.6016,2776.6,2776.2,2.3955]
[1724494606427,4.73327272,2776.8,2776.2,5.99751]
[1724494606796,3.60142,2776.7,2776.2,5.99751]
[1724494607190,4.73327272,2776.8,2776.2,3.60201]
[1724494607391,1.13194272,2776.9,2776.4,9.59899]
[1724494607622,3.60107,2777.0,2776.5,2.3955]
[1724494608024,3.60115,2776.9,2776.5,2.3955]
[1724494609330,3.60115,2776.9,2776.5,5.99715]
[1724494610423,3.60115,2776.9,2776.5,2.3955]
[1724494610623,3.60089,2777.1,2776.5,2.3955]
[1724494610624,3.60089,2777.1,2776.6,2.3955]
[1724494610801,3.60089,2777.1,2776.6,5.99695]
[1724494611192,3.60089,2777.1,2776.8,2.3955]
[1724494612427,8.33335272,2777.3,2776.8,2.3955]
[1724494612632,3.60076,2777.2,2776.8,3.355334]
[1724494613353,3.6007,2777.3,2776.8,3.355334]
[1724494613354,3.6007,2777.3,2776.8,6.956494]
[1724494615019,7.20139,2777.3,2776.8,6.956494]
[1724494615221,3.60069,2777.3,2776.8,6.956494]
[1724494617061,7.20138,2777.3,2776.8,6.956494]
[1724494617365,7.20138,2777.3,2776.9,0.68439966]
[1724494617366,3.60069,2777.3,2776.9,0.68439966]
[1724494619376,3.60069,2777.3,2777.0,2.3955]
[1724494620744,3.60069,2777.3,2776.8,4.560994]
[1724494620745,3.60097,2777.1,2776.8,0.959834]
[1724494622398,3.60097,2777.1,2776.5,4.38783996]
[1724494622399,3.60115,2776.9,2776.5,2.2852]
[1724494622602,3.60128,2776.8,2776.3,5.88706]
[1724494622760,3.60128,2776.8,2776.4,3.0]
[1724494623095,3.60115,2776.9,2776.5,0.888706]
[1724494623772,7.20238,2776.9,2776.5,0.888706]
[1724494623973,7.20239,2776.9,2776.3,5.88704]
[1724494624174,3.60115,2776.9,2776.3,5.88703]
[1724494624702,3.60128,2776.8,2776.3,5.88703]
[1724494624904,3.60128,2776.8,2776.3,9.48888]
[1724494625037,3.60128,2776.8,2776.3,5.88703]
[1724494625237,3.60128,2776.8,2776.3,9.48888]
[1724494625441,8.33406272,2777.0,2776.4,4.67658138]
[1724494625672,7.20212,2777.0,2776.4,4.67658138]
[1724494625873,3.60115,2776.9,2776.4,4.67658138]
[1724494626851,4.73294272,2777.0,2776.5,7.20312]
[1724494627157,1.13194272,2777.1,2776.6,5.8867]
[1724494627356,1.13194272,2777.0,2776.7,4.550214]
[1724494627713,5.10863717,2777.2,2776.7,4.550214]
[1724494627714,1.13194272,2777.1,2776.7,8.151534]
[1724494627980,1.13194272,2777.1,2776.7,4.550144]
[1724494628310,1.13194272,2777.1,2776.9,3.60104]
[1724494628604,1.13194272,2777.3,2776.9,3.60104]
[1724494628775,1.13194272,2777.3,2776.9,4.6446644]
[1724494629164,1.13194272,2777.3,2777.1,2.2852]
[1724494629348,1.50781717,2777.4,2777.1,2.2852]
[1724494629349,1.13194272,2777.4,2777.1,2.2852]
[1724494629548,4.73236272,2777.5,2777.1,2.2852]
[1724494629751,1.13194272,2777.4,2777.1,2.2852]
[1724494630367,1.13194272,2777.3,2776.9,6.9298644]
[1724494630578,1.13194272,2777.4,2776.9,6.9298644]
[1724494630780,1.13194272,2777.4,2777.0,0.81889982]
[1724494631402,1.13194272,2777.4,2777.0,0.89091155]
[1724494632824,1.13194272,2777.4,2777.0,0.81889982]
[1724494635024,1.13194272,2777.4,2777.1,0.67051398]
[1724494635791,1.13194272,2777.3,2777.1,0.67051398]
[1724494635994,8.70867717,2777.5,2777.4,5.88568]
[1724494635995,1.13194272,2777.5,2777.4,5.88568]
[1724494636325,3.59985,2777.9,2777.4,3.54433382]
[1724494636326,1.13194272,2777.7,2777.4,3.54433382]
[1724494636490,1.50781717,2777.9,2777.5,7.2006]
[1724494636491,1.13194272,2777.8,2777.5,7.2006]
[1724494636681,1.13194272,2777.9,2777.5,3.60027]
[1724494636879,1.13194272,2777.9,2777.5,4.67478338]
[1724494637071,4.73179272,2777.9,2777.5,1.07451338]
[1724494637275,1.13194272,2777.8,2777.5,1.07451338]
[1724494638596,4.73179272,2777.9,2777.5,1.07451338]
[1724494639184,1.13194272,2777.9,2777.5,4.67477338]
[1724494639392,1.13194272,2777.9,2777.6,1.18195672]
[1724494639701,1.13194272,2778.0,2777.6,4.78215672]
[1724494640902,4.73165272,2778.0,2777.6,4.78215672]
[1724494641123,4.73165272,2778.0,2777.6,1.18195672]
[1724494641897,3.59984,2777.9,2777.6,1.18195672]
[1724494643340,4.73165272,2778.0,2777.6,1.18195672]
[1724494643891,3.59971,2778.0,2777.6,1.18195672]
[1724494644090,3.59971,2778.0,2777.7,0.47822967]
[1724494644310,4.73165272,2778.0,2777.7,0.47822967]
[1724494645243,3.59971,2778.0,2777.7,0.47822967]
[1724494645545,4.73165272,2778.0,2777.7,0.47822967]
[1724494646505,3.59985,2777.9,2777.7,0.47822967]
[1724494646704,1.13194272,2778.0,2777.4,3.54433382]
[1724494646933,3.59986,2777.9,2777.4,5.8856]
[1724494647263,3.59998,2777.8,2777.4,2.2852]
[1724494648253,3.59986,2777.9,2777.4,2.2852]
[1724494649049,3.59998,2777.8,2777.4,2.2852]
[1724494649245,3.59986,2777.9,2777.5,1.45849438]
[1724494649701,7.19979,2777.9,2777.5,1.45849438]
[1724494649899,3.59986,2777.9,2777.5,1.45849438]
[1724494650351,4.73180272,2777.9,2777.5,1.45849438]
[1724494650646,3.59986,2777.9,2777.5,1.45849438]
[1724494651342,4.73180272,2777.9,2777.5,1.45849438]
[1724494651702,8.33172272,2777.9,2777.5,1.45849438]
[1724494651902,4.73180272,2777.9,2777.5,1.45849438]
[1724494654956,8.33175272,2777.9,2777.5,1.45849438]
[1724494655116,8.33175272,2777.9,2777.3,7.44]
[1724494655117,3.60021,2777.7,2777.3,7.44]
[1724494655321,3.60036,2777.5,2777.3,7.44]
[1724494656138,4.73217272,2777.6,2777.3,7.44]
[1724494658245,4.73217272,2777.6,2777.2,6.05894]
[1724494661346,4.73217272,2777.6,2777.2,2.4582]
[1724494662424,8.33252272,2777.6,2777.2,2.4582]
[1724494662627,3.60036,2777.5,2777.0,19.68655382]
[1724494662823,4.73217272,2777.6,2777.1,0.56339317]
[1724494663043,4.73217272,2777.6,2777.1,3.60085]
[1724494663241,4.73217272,2777.6,2777.0,18.4274]
[1724494663555,3.60037,2777.5,2777.1,0.56339156]
[1724494663727,3.60037,2777.5,2777.0,18.4274]
[1724494663918,3.60037,2777.5,2777.1,0.56339635]
[1724494664223,3.60037,2777.5,2777.0,5.9674]
[1724494664424,3.60037,2777.5,2777.1,3.60087]
[1724494665972,1.13194272,2777.6,2777.1,3.60087]
[1724494666332,4.73223272,2777.6,2777.1,3.60087]
[1724494673173,3.60037,2777.5,2777.0,5.9675]
[1724494673372,3.60037,2777.5,2777.0,7.668362]
[1724494674267,1.13194272,2777.4,2777.1,3.60079]
[1724494674473,1.13194272,2777.3,2777.1,3.60079]
[1724494676501,1.13194272,2777.2,2777.0,7.668332]
[1724494676671,1.13194272,2777.2,2777.0,4.067362]
[1724494679970,1.13194272,2777.2,2776.9,7.44]
[1724494680556,1.13194272,2777.0,2776.6,2.3438]
[1724494680793,1.13194272,2776.9,2776.6,2.3438]
[1724494681298,1.13194272,2776.8,2776.6,2.3438]
[1724494681603,1.13194272,2776.9,2776.6,4.16840738]
[1724494682182,1.13194272,2776.9,2776.6,7.76991738]
[1724494682580,1.13194272,2776.8,2776.6,7.76991738]
[1724494683103,1.13194272,2776.8,2776.6,4.16840738]
[1724494683301,1.13194272,2776.8,2776.5,11.04157]
[1724494684590,1.13194272,2776.8,2776.5,7.44]
[1724494684993,1.13194272,2776.8,2776.4,5.94558]
[1724494685380,1.13194272,2776.8,2776.4,2.3438]
[1724494685822,4.73321272,2776.8,2776.4,2.3438]
[1724494686724,1.13194272,2776.9,2776.4,5.94557]
[1724494688433,10.70716272,2777.0,2776.4,5.94557]
[1724494688597,1.13194272,2776.9,2776.4,5.94557]
[1724494689076,10.70713272,2777.0,2776.4,5.94557]
[1724494689282,1.13194272,2776.9,2776.4,5.94557]
[1724494690224,1.13194272,2776.9,2776.5,3.60164]
[1724494690607,10.70713272,2777.0,2776.5,3.60164]
[1724494690805,7.10605272,2777.0,2776.5,3.60164]
[1724494691188,1.13194272,2776.9,2776.5,3.60164]